bitfinex/quotes_BTCUSD_20251217
["timestamp","ask_amount","ask_price","bid_price","bid_amount"]
[1766005300624,0.58823,86068.0,86046.0,0.58621]
[1766005300828,0.58823,86068.0,86044.0,0.06157]
[1766005300829,0.20258926,86064.0,86061.0,3.04e-06]
[1766005301036,0.7792,86062.0,86061.0,3.04e-06]
[1766005302085,0.19097,86062.0,86061.0,3.04e-06]
[1766005302301,0.19258287,86062.0,86061.0,3.04e-06]
[1766005303408,0.00161287,86062.0,86061.0,3.04e-06]
[1766005303644,0.19258287,86062.0,86061.0,3.04e-06]
[1766005304976,0.00161287,86062.0,86061.0,3.04e-06]
[1766005305643,0.00161287,86062.0,86051.0,0.02309304]
[1766005305852,0.00161287,86062.0,86051.0,0.08500267]
[1766005307197,0.19097,86060.0,86051.0,5.233e-05]
[1766005307655,0.58823,86058.0,86051.0,2.33e-06]
[1766005307860,0.24588914,86062.0,86051.0,2.33e-06]
[1766005307861,0.7792,86057.0,86051.0,2.33e-06]
[1766005308097,0.19097,86057.0,86051.0,2.33e-06]
[1766005309166,0.58823,86057.0,86051.0,2.33e-06]
[1766005309582,0.7792,86057.0,86051.0,2.33e-06]
[1766005310083,0.7802,86057.0,86051.0,2.33e-06]
[1766005310243,0.7792,86057.0,86051.0,2.33e-06]
[1766005310658,0.7802,86057.0,86051.0,2.33e-06]
[1766005310861,0.7792,86057.0,86051.0,2.33e-06]
[1766005311058,0.01848,86068.0,86054.0,0.59548]
[1766005311319,0.01848,86068.0,86054.0,0.61057512]
[1766005311799,0.10918,86070.0,86060.0,0.59548]
[1766005312017,0.10918,86070.0,86062.0,0.59548]
[1766005312239,0.12079845,86070.0,86062.0,0.59548]
[1766005312439,0.10943652,86070.0,86062.0,0.59548]
[1766005312550,0.01161858,86069.0,86062.0,0.59548]
[1766005312762,0.35342399,86070.0,86061.0,0.01824]
[1766005313016,0.10943652,86070.0,86061.0,0.01824]
[1766005313271,0.01873652,86070.0,86061.0,0.01824]
[1766005313405,0.10943652,86070.0,86061.0,0.01824]
[1766005313610,0.01873652,86070.0,86061.0,0.01824]
[1766005313814,0.08517136,86070.0,86051.0,2.33e-06]
[1766005314017,0.23241757,86053.0,86051.0,2.33e-06]
[1766005314277,0.0116202,86057.0,86051.0,2.33e-06]
[1766005314501,0.2440262,86057.0,86051.0,2.33e-06]
[1766005314696,0.01848,86058.0,86051.0,2.33e-06]
[1766005315035,0.7792,86057.0,86051.0,2.33e-06]
[1766005315243,0.01848,86058.0,86051.0,2.33e-06]
[1766005315461,0.58823,86064.0,86051.0,2.33e-06]
[1766005315462,0.01848,86064.0,86051.0,2.33e-06]
[1766005315664,0.01848,86064.0,86051.0,0.0016152]
[1766005315871,0.19097,86062.0,86051.0,0.0016152]
[1766005316089,0.7792,86062.0,86051.0,0.0016152]
[1766005316831,0.58823,86062.0,86051.0,2.33e-06]
[1766005317036,0.19097,86059.0,86051.0,2.33e-06]
[1766005318479,0.00606893,86059.0,86051.0,2.33e-06]
[1766005320260,0.00606893,86059.0,86043.0,0.76143233]
[1766005320490,0.58823,86063.0,86044.0,0.59548]
[1766005320858,0.7792,86063.0,86044.0,0.59548]
[1766005321064,0.7792,86063.0,86043.0,0.00198822]
[1766005321065,0.58823,86062.0,86043.0,0.00198822]
[1766005321277,0.58823,86052.0,86043.0,0.00037535]
[1766005321663,0.7792,86052.0,86043.0,0.00037535]
[1766005321879,0.02985258,86065.0,86044.0,0.59548]
[1766005322227,0.02985258,86065.0,86043.0,0.00198822]
[1766005322228,0.03671346,86065.0,86043.0,0.00198822]
[1766005322408,0.03671346,86065.0,86047.0,0.59548]
[1766005322712,0.03671346,86065.0,86048.0,0.05974682]
[1766005323090,0.03871346,86065.0,86048.0,0.05974682]
[1766005323255,0.03671346,86065.0,86048.0,0.17743]
[1766005323662,0.01823346,86065.0,86048.0,0.00161287]
[1766005323862,0.01823346,86065.0,86050.0,0.77228]
[1766005324269,0.01823346,86065.0,86050.0,0.1768]
[1766005324472,0.79743346,86065.0,86050.0,0.1768]
[1766005325102,0.7792,86064.0,86048.0,0.00161287]
[1766005325700,0.01823346,86065.0,86048.0,0.00161287]
[1766005325903,0.10893346,86065.0,86048.0,0.00161287]
[1766005326105,0.7792,86064.0,86048.0,0.00161287]
[1766005326314,0.10893346,86065.0,86049.0,0.77101]
[1766005326519,0.10893346,86065.0,86048.0,0.00161287]
[1766005326685,0.88813346,86065.0,86048.0,0.00161287]
[1766005327276,0.01083738,86064.0,86048.0,0.00161287]
[1766005328338,0.03585279,86064.0,86048.0,0.00161287]
[1766005328540,0.01083738,86063.0,86048.0,0.00161287]
[1766005330467,0.01083738,86063.0,86049.0,0.79697]
[1766005330848,0.01083738,86062.0,86049.0,0.79697]
[1766005331068,0.01083738,86061.0,86049.0,0.79697]
[1766005331286,0.01083738,86060.0,86049.0,0.79697]
[1766005331478,0.01083738,86059.0,86049.0,0.79697]
[1766005331653,0.01083738,86058.0,86049.0,0.79697]
[1766005331871,0.80126,86056.0,86048.0,0.00161287]
[1766005332238,1.05455283,86060.0,86048.0,0.00161287]
[1766005332239,0.04969131,86069.0,86056.0,0.59414]
[1766005332393,0.04282949,86072.0,86056.0,0.059414]
[1766005332577,0.89196,86068.0,86054.0,0.16093]
[1766005332774,0.0250129,86067.0,86054.0,0.75507]
[1766005332974,0.28107,86068.0,86054.0,0.75507]
[1766005333366,0.28207,86068.0,86054.0,0.75507]
[1766005333619,0.28207,86068.0,86051.0,0.75444]
[1766005333834,0.28207,86068.0,86049.0,0.59414]
[1766005334019,0.28207,86068.0,86053.0,0.59414]
[1766005334240,0.001,86068.0,86057.0,0.16009]
[1766005334390,0.01161764,86076.0,86057.0,0.16009]
[1766005334391,0.03121131,86077.0,86062.0,0.72796]
[1766005334764,0.03121131,86084.0,86066.0,0.59414]
[1766005334914,0.03121131,86088.0,86072.0,0.59414]
[1766005335115,0.03121131,86088.0,86072.0,0.59575287]
[1766005335331,0.35422956,86089.0,86072.0,0.59575287]
[1766005335507,0.01161602,86088.0,86072.0,0.59575287]
[1766005335688,0.0907,86089.0,86072.0,0.59575287]
[1766005335888,0.0907,86089.0,86072.0,0.66142512]
[1766005336090,0.80126,86083.0,86072.0,0.06728512]
[1766005336294,1.43466183,86082.0,86072.0,0.00161287]
[1766005338233,0.63340183,86090.0,86072.0,0.00161287]
[1766005338437,0.63340183,86090.0,86073.0,0.7255]
[1766005339043,0.28118252,86089.0,86073.0,0.7255]
[1766005339358,0.28118252,86089.0,86073.0,0.79821129]
[1766005339527,0.09081252,86089.0,86073.0,0.79982416]
[1766005339729,0.64501758,86090.0,86073.0,0.72711287]
[1766005340082,0.19037,86088.0,86073.0,0.72722539]
[1766005340301,0.80126,86088.0,86073.0,0.72722539]
[1766005340652,0.00025648,86078.0,86073.0,0.72722539]
[1766005341423,0.00025648,86078.0,86073.0,0.13308539]
[1766005343992,0.00025648,86078.0,86073.0,0.13653539]
[1766005344186,0.00025648,86078.0,86075.0,0.001]
[1766005344704,0.00025648,86078.0,86073.0,0.13653539]
[1766005344912,0.00025648,86078.0,86073.0,0.00272539]
[1766005345108,0.00025648,86078.0,86073.0,0.00172539]
[1766005345460,0.00025648,86078.0,86075.0,0.001]
[1766005345702,0.0907,86088.0,86073.0,0.00172539]
[1766005345842,0.0907,86088.0,86078.0,0.59414]
[1766005346047,0.0907,86088.0,86080.0,0.59414]
[1766005346267,0.0907,86088.0,86080.0,0.7277]
[1766005346889,0.0907,86089.0,86080.0,0.7277]
[1766005347262,0.0907,86089.0,86080.0,0.6507]
[1766005347466,0.01161602,86088.0,86080.0,0.6507]
[1766005347751,0.01161642,86085.0,86073.0,0.00011252]
[1766005347950,0.61089,86081.0,86073.0,2.52e-06]
[1766005348158,0.80126,86082.0,86073.0,2.52e-06]
[1766005348384,0.19037,86079.0,86073.0,2.52e-06]
[1766005348636,0.80126,86079.0,86073.0,2.52e-06]
[1766005351027,0.19037,86079.0,86073.0,2.52e-06]
[1766005351231,0.23232326,86087.0,86077.0,0.59414]
[1766005351232,0.01848,86087.0,86077.0,0.59414]
[1766005351484,0.0907,86089.0,86077.0,0.59414]
[1766005351687,0.0907,86089.0,86076.0,0.14103]
[1766005351688,0.63308782,86087.0,86076.0,0.14103]
[1766005351940,0.63308782,86087.0,86073.0,2.52e-06]
[1766005352091,0.63308782,86083.0,86073.0,2.52e-06]
[1766005352861,0.0907,86086.0,86073.0,2.52e-06]
[1766005353774,0.82345782,86083.0,86073.0,2.52e-06]
[1766005353922,1.43434782,86083.0,86073.0,2.52e-06]
[1766005355236,1.43434782,86083.0,86073.0,0.00100252]
[1766005356593,1.43434782,86083.0,86073.0,2.52e-06]
[1766005356804,1.43434782,86083.0,86073.0,0.00100252]
[1766005357423,0.80126,86082.0,86073.0,0.00100252]
[1766005358015,0.0907,86082.0,86073.0,0.00100252]
[1766005359695,0.0907,86082.0,86073.0,2.52e-06]
[1766005360096,0.0907,86082.0,86073.0,0.00100252]
[1766005360252,0.0907,86082.0,86073.0,2.52e-06]
[1766005360610,0.89196,86082.0,86073.0,0.00100252]
[1766005361439,0.28107,86082.0,86073.0,0.00100252]
[1766005361821,0.28107,86082.0,86073.0,2.52e-06]
[1766005362792,0.0907,86082.0,86073.0,2.52e-06]
[1766005363230,0.01087234,86081.0,86073.0,2.52e-06]
[1766005363390,0.0907,86082.0,86073.0,2.52e-06]
[1766005364223,0.01088162,86081.0,86073.0,2.52e-06]
[1766005365308,0.77677,86080.0,86073.0,2.52e-06]
[1766005365685,0.01088162,86079.0,86073.0,2.52e-06]
[1766005366037,0.77677,86075.0,86073.0,2.52e-06]
[1766005366406,0.01088073,86074.0,86073.0,2.52e-06]
[1766005366604,0.01088074,86074.0,86073.0,2.52e-06]
[1766005367244,0.77677,86075.0,86073.0,2.52e-06]
[1766005367788,0.01088029,86074.0,86073.0,2.52e-06]
[1766005367971,0.77677,86075.0,86073.0,2.52e-06]
[1766005368185,0.13918317,86113.0,86073.0,2.52e-06]
[1766005368186,0.0907,86083.0,86073.0,2.52e-06]
[1766005368378,0.01088009,86082.0,86073.0,2.52e-06]
[1766005369178,0.78765009,86082.0,86073.0,2.52e-06]
[1766005369476,0.0907,86080.0,86073.0,2.52e-06]
[1766005369697,0.58827,86075.0,86073.0,2.52e-06]
[1766005369884,0.1885,86077.0,86073.0,2.52e-06]
[1766005370864,0.01088083,86076.0,86073.0,2.52e-06]
[1766005371101,0.1885,86077.0,86073.0,2.52e-06]
[1766005371303,0.01088058,86076.0,86073.0,2.52e-06]
[1766005371505,0.1885,86077.0,86073.0,2.52e-06]
[1766005371664,0.01088055,86076.0,86073.0,2.52e-06]
[1766005372083,0.1885,86077.0,86073.0,2.52e-06]
[1766005372305,0.01088039,86076.0,86073.0,2.52e-06]
[1766005373332,0.1885,86077.0,86073.0,2.52e-06]
[1766005374276,0.58827,86076.0,86073.0,2.52e-06]
[1766005374599,0.77677,86076.0,86073.0,2.52e-06]
[1766005374973,0.01161723,86079.0,86073.0,2.52e-06]
[1766005374974,0.1885,86075.0,86073.0,2.52e-06]
[1766005375290,0.58827,86074.0,86073.0,2.52e-06]
[1766005375639,0.77677,86074.0,86073.0,2.52e-06]
[1766005377758,0.0907,86080.0,86073.0,2.52e-06]
[1766005378051,0.01088741,86079.0,86073.0,2.52e-06]
[1766005378530,0.78765741,86079.0,86073.0,2.52e-06]
[1766005378694,0.01088741,86078.0,86073.0,2.52e-06]
[1766005379344,0.23232205,86088.0,86074.0,0.57908]
[1766005379345,0.03121131,86088.0,86074.0,0.57908]
[1766005379544,0.03121131,86088.0,86073.0,0.00161539]
[1766005379545,0.06265668,86098.0,86073.0,0.00161539]
[1766005379546,0.01844,86096.0,86083.0,0.03293]
[1766005379755,0.01844,86098.0,86083.0,0.61362287]
[1766005379929,1.22135782,86100.0,86083.0,0.61362287]
[1766005380111,1.22135782,86100.0,86088.0,0.61141]
[1766005380112,0.63308782,86100.0,86088.0,0.61141]
[1766005380313,0.26039324,86107.0,86091.0,0.03233]
[1766005380314,0.02906848,86107.0,86091.0,0.03233]
[1766005380528,0.58827,86117.0,86098.0,0.57908]
[1766005380529,0.03121131,86117.0,86098.0,0.57908]
[1766005380729,0.77717,86123.0,86098.0,0.57908]
[1766005380730,0.63308782,86120.0,86104.0,0.57908]
[1766005380927,0.77717,86123.0,86106.0,0.57908]
[1766005381153,0.63308782,86120.0,86106.0,0.57908]
[1766005381312,0.01161143,86122.0,86104.0,0.00161287]
[1766005381313,0.63308782,86116.0,86104.0,0.00161287]
[1766005381518,1.40985782,86116.0,86104.0,0.00161287]
[1766005381953,0.1885,86114.0,86104.0,0.00161287]
[1766005382185,1.22147043,86116.0,86104.0,0.00161287]
[1766005382186,0.00011261,86116.0,86104.0,0.00161287]
[1766005382354,0.77677,86113.0,86104.0,0.00161287]
[1766005383225,0.77677,86113.0,86097.0,0.03554]
[1766005383456,0.0116121,86117.0,86097.0,0.03554]
[1766005383457,0.1885,86135.0,86110.0,0.57908]
[1766005383677,0.0004,86136.0,86116.0,0.57908]
[1766005383875,0.0004,86136.0,86122.0,0.57908]
[1766005384026,0.0004,86136.0,86124.0,0.57908]
[1766005384208,0.0004,86136.0,86124.0,0.58069287]
[1766005384835,0.0004,86136.0,86124.0,0.57669287]
[1766005385037,0.0004,86136.0,86125.0,0.06294229]
[1766005385492,0.0004,86136.0,86126.0,0.03372]
[1766005385699,0.0004,86136.0,86126.0,0.03533287]
[1766005386097,0.0004,86136.0,86126.0,0.03488287]
[1766005386098,3.6e-06,86127.0,86126.0,0.03488287]
[1766005386722,3.6e-06,86127.0,86126.0,0.61396287]
[1766005388782,3.6e-06,86127.0,86126.0,0.61696287]
[1766005388985,3.6e-06,86127.0,86126.0,0.68050316]
[1766005389230,3.6e-06,86127.0,86126.0,0.67750316]
[1766005389445,3.6e-06,86127.0,86126.0,0.61596287]
[1766005389824,3.6e-06,86127.0,86126.0,0.61396287]
[1766005390019,3.6e-06,86127.0,86126.0,0.61596287]
[1766005390408,3.6e-06,86127.0,86126.0,0.61396287]
[1766005391955,3.6e-06,86127.0,86126.0,0.60996287]
[1766005392265,3.6e-06,86127.0,86126.0,0.61196287]
[1766005392942,3.6e-06,86127.0,86126.0,0.60996287]
[1766005393428,3.6e-06,86127.0,86126.0,0.67480316]
[1766005393856,0.0004,86156.0,86131.0,0.60715]
[1766005394061,0.00077528,86156.0,86139.0,0.02549]
[1766005394263,0.00077528,86156.0,86142.0,0.63264]
[1766005394530,0.00077528,86156.0,86137.0,0.013895]
[1766005394531,0.2437266,86163.0,86137.0,0.013895]
[1766005394532,0.03121131,86185.0,86150.0,0.60715]
[1766005394727,0.00051258,86170.0,86156.0,0.60715]
[1766005394956,0.00051258,86170.0,86160.0,0.60715]
[1766005395152,2.58e-06,86170.0,86162.0,0.60715]
[1766005395627,2.58e-06,86170.0,86164.0,0.60715]
[1766005395766,2.58e-06,86170.0,86166.0,0.63104]
[1766005396219,2.58e-06,86170.0,86165.0,0.04919464]
[1766005396616,2.58e-06,86170.0,86165.0,0.68023464]
[1766005396817,2.58e-06,86170.0,86166.0,0.63047]
[1766005397030,2.58e-06,86170.0,86165.0,0.04919464]
[1766005397031,2.58e-06,86170.0,86167.0,0.02332]
[1766005397293,2.58e-06,86170.0,86157.0,0.01844]
[1766005397294,2.58e-06,86170.0,86162.0,0.002]
[1766005397642,2.58e-06,86170.0,86162.0,0.697561]
[1766005398432,2.58e-06,86170.0,86151.0,0.11546078]
[1766005398433,0.20726537,86167.0,86151.0,0.11546078]
[1766005398630,0.20726537,86167.0,86147.0,0.60715]
[1766005398631,0.63308782,86161.0,86152.0,0.01844]
[1766005398839,0.63308782,86161.0,86137.0,0.013895]
[1766005398840,0.60106,86159.0,86137.0,0.013895]
[1766005399057,0.60106,86159.0,86140.0,0.69785]
[1766005399058,0.60267287,86159.0,86140.0,0.69785]
[1766005399304,0.60267287,86159.0,86141.0,0.01844]
[1766005399459,0.60267287,86159.0,86142.0,0.06963867]
[1766005399635,0.60267287,86159.0,86141.0,0.01844]
[1766005399636,0.00161287,86159.0,86146.0,0.60715]
[1766005399839,0.00161287,86159.0,86149.0,0.02156]
[1766005400027,0.00161287,86159.0,86149.0,0.62871]
[1766005400231,0.00161287,86159.0,86149.0,0.60715]
[1766005400451,2.58e-06,86170.0,86153.0,0.02156]
[1766005400743,2.58e-06,86170.0,86140.0,0.71818899]
[1766005400744,2.58e-06,86171.0,86156.0,0.02058]
[1766005400965,2.58e-06,86171.0,86158.0,0.02058]
[1766005402073,2.58e-06,86171.0,86156.0,0.00011258]
[1766005402074,0.00161545,86171.0,86159.0,0.01844]
[1766005402219,0.79833545,86171.0,86159.0,0.01844]
[1766005402645,0.79672,86169.0,86158.0,0.002]
[1766005402862,0.79672,86169.0,86156.0,0.00011258]
[1766005402863,0.00161287,86169.0,86156.0,0.00011258]
[1766005403070,0.71818899,86170.0,86156.0,2.58e-06]
[1766005403071,0.00161287,86157.0,86156.0,2.58e-06]
[1766005404393,2.58e-06,86171.0,86146.0,0.02106]
[1766005404596,0.00011504,86171.0,86151.0,0.02106]
[1766005404939,0.19566,86170.0,86151.0,0.02106]
[1766005406007,0.19566,86170.0,86151.0,0.02267287]
[1766005406173,0.00025613,86158.0,86151.0,0.02267287]
[1766005407896,0.00025613,86158.0,86151.0,0.02367287]
[1766005408113,0.00025613,86158.0,86151.0,0.02267287]
[1766005408561,0.00025613,86158.0,86151.0,0.02367287]
[1766005409341,0.00025613,86158.0,86151.0,0.00261287]
[1766005409551,0.00025613,86158.0,86141.0,0.60715]
[1766005409707,0.00025613,86158.0,86138.0,0.01844]
[1766005409905,0.60106,86157.0,86139.0,0.013895]
[1766005410104,0.79672,86155.0,86139.0,0.013895]
[1766005410313,0.79672,86155.0,86137.0,0.01844]
[1766005410314,0.79672,86155.0,86131.0,0.60715]
[1766005410315,0.01160698,86155.0,86131.0,0.60715]
[1766005410519,0.19566,86148.0,86131.0,0.00161287]
[1766005411329,0.03004685,86156.0,86131.0,0.00161287]
[1766005411330,0.19566,86146.0,86131.0,0.00161287]
[1766005411542,0.71818899,86150.0,86131.0,0.00161287]
[1766005411543,0.19566,86140.0,86131.0,0.00161287]
[1766005412232,0.19566,86140.0,86134.0,0.0010008]
[1766005412860,0.19566,86140.0,86134.0,0.00137608]
[1766005413497,0.19566,86140.0,86123.0,0.013895]
[1766005413498,0.60106,86140.0,86123.0,0.013895]
[1766005413707,0.60106,86140.0,86120.0,0.62662]
[1766005413708,0.19566,86137.0,86111.0,0.0907]
[1766005413891,0.19566,86137.0,86120.0,0.60715]
[1766005413892,0.79672,86137.0,86120.0,0.60715]
[1766005414358,0.01082852,86136.0,86120.0,0.60715]
[1766005416019,0.01082852,86136.0,86122.0,0.60715]
[1766005416235,0.01082852,86136.0,86122.0,0.66246507]
[1766005416448,0.01082852,86136.0,86119.0,0.01844]
[1766005416449,0.79672,86139.0,86123.0,0.01668]
[1766005416662,0.01082918,86138.0,86123.0,0.01668]
[1766005417202,0.01082918,86138.0,86123.0,0.62383]
[1766005417635,0.01082918,86138.0,86124.0,0.01611]
[1766005417838,0.00037505,86140.0,86127.0,0.60715]
[1766005417839,0.01082918,86137.0,86127.0,0.60715]
[1766005418033,0.01082918,86136.0,86127.0,0.60715]
[1766005418256,0.00037505,86140.0,86127.0,0.60715]
[1766005418434,0.00037505,86140.0,86129.0,0.60715]
[1766005418638,0.01082875,86145.0,86130.0,0.01555]
[1766005418856,0.01094116,86145.0,86130.0,0.01716287]
[1766005419216,0.01094116,86145.0,86130.0,0.62431287]
[1766005420187,0.01094116,86145.0,86130.0,0.68674416]
[1766005420912,0.18157,86143.0,86130.0,0.06404416]
[1766005421191,0.01082875,86142.0,86130.0,0.00161287]
[1766005421539,0.01082875,86142.0,86124.0,0.013895]
[1766005421760,0.01082893,86141.0,86124.0,0.013895]
[1766005421988,0.01082893,86140.0,86124.0,0.013895]
[1766005422289,0.01082893,86139.0,86124.0,0.013895]
[1766005422456,0.01082893,86138.0,86124.0,0.013895]
[1766005422655,0.18157,86143.0,86125.0,0.01294]
[1766005422879,0.01082819,86142.0,86125.0,0.01294]
[1766005423438,0.01082819,86142.0,86125.0,0.626]
[1766005423692,0.01082819,86142.0,86128.0,0.61306]
[1766005424809,0.01082819,86142.0,86129.0,0.62549]
[1766005424987,0.01082819,86141.0,86129.0,0.62549]
[1766005425183,0.01082819,86140.0,86129.0,0.62549]
[1766005425527,0.00172528,86145.0,86129.0,0.62549]
[1766005425651,0.01255158,86145.0,86129.0,0.62549]
[1766005425856,1.58e-06,86145.0,86130.0,0.01393242]
[1766005426056,0.01844,86155.0,86131.0,0.61306]
[1766005426309,0.63222995,86150.0,86131.0,0.61504792]
[1766005426546,0.18157,86148.0,86131.0,0.61504792]
[1766005426752,0.75301,86148.0,86131.0,0.61504792]
[1766005427041,0.01844,86155.0,86133.0,0.61306]
[1766005427219,0.01844,86155.0,86133.0,0.61467287]
[1766005428622,0.01944,86155.0,86133.0,0.61467287]
[1766005429321,0.001,86155.0,86138.0,0.61306]
[1766005429888,0.75301,86157.0,86138.0,0.61467287]
[1766005430005,0.75301,86157.0,86140.0,0.61306]
[1766005430006,0.001,86155.0,86140.0,0.61306]
[1766005430416,0.63183049,86157.0,86140.0,0.61306]
[1766005430813,0.00025613,86158.0,86142.0,0.61306]
[1766005431099,0.00025613,86158.0,86144.0,0.61747]
[1766005431282,0.00025613,86158.0,86145.0,0.68691452]
[1766005431885,0.00025613,86158.0,86145.0,0.61747]
[1766005432090,0.57144,86157.0,86144.0,0.00161287]
[1766005432423,0.18157,86154.0,86144.0,0.00161287]
[1766005433525,0.00025613,86158.0,86144.0,0.00161287]
[1766005434378,0.00025613,86158.0,86147.0,0.61306]
[1766005434498,0.00025613,86158.0,86147.0,0.61576]
[1766005434897,0.01844,86163.0,86151.0,0.61306]
[1766005435125,0.01844,86163.0,86156.0,0.00214]
[1766005435317,0.01844,86163.0,86148.0,0.61306]
[1766005435318,0.0300459,86163.0,86148.0,0.61306]
[1766005435519,0.63222995,86160.0,86148.0,0.61306]
[1766005435951,0.63222995,86160.0,86149.0,0.00158]
[1766005436185,0.63222995,86160.0,86150.0,0.61306]
[1766005436359,0.63222995,86160.0,86148.0,0.61306]
[1766005436560,0.35286461,86163.0,86148.0,0.61306]
[1766005436561,0.10914,86163.0,86148.0,0.61306]
[1766005436720,0.63222995,86160.0,86150.0,0.61306]
[1766005436910,0.63222995,86160.0,86150.0,0.61408]
[1766005437106,0.63222995,86160.0,86152.0,0.61306]
[1766005437448,0.01844,86163.0,86152.0,0.61306]
[1766005437655,0.01844,86163.0,86149.0,0.06172529]
[1766005437656,0.01844,86163.0,86154.0,0.61306]
[1766005438019,0.01084605,86162.0,86147.0,0.00161287]
[1766005438246,0.01084605,86162.0,86151.0,0.00046]
[1766005438409,0.01084605,86162.0,86154.0,0.61352]
[1766005438611,0.01084605,86162.0,86154.0,0.58052]
[1766005438848,0.01844,86167.0,86154.0,0.00161287]
[1766005439085,0.27227,86161.0,86154.0,0.00062562]
[1766005439432,0.0907,86161.0,86154.0,0.00062562]
[1766005440151,0.10914,86167.0,86154.0,0.00062562]
[1766005440510,0.68058,86167.0,86154.0,0.00062562]
[1766005440715,0.01160741,86171.0,86155.0,0.61306]
[1766005440716,2.58e-06,86171.0,86155.0,0.61306]
[1766005440991,0.001,86167.0,86156.0,0.67442856]
[1766005441290,2.58e-06,86171.0,86156.0,0.67442856]
[1766005441291,2.58e-06,86171.0,86156.0,0.67505417]
[1766005442069,0.18157258,86171.0,86156.0,0.06199417]
[1766005442284,2.58e-06,86171.0,86157.0,0.61306]
[1766005442489,2.58e-06,86171.0,86157.0,0.61368561]
[1766005443436,2.58e-06,86171.0,86152.0,0.013895]
[1766005443437,0.0907,86180.0,86170.0,0.00062561]
[1766005443622,0.09168725,86180.0,86170.0,0.00062561]
[1766005443801,0.0907,86178.0,86170.0,0.00062561]
[1766005443995,0.0014167,86171.0,86170.0,0.00062561]
[1766005444616,0.0014167,86171.0,86157.0,0.001]
[1766005444824,0.75301,86174.0,86157.0,0.00073811]
[1766005445016,0.00100066,86158.0,86157.0,0.61379811]
[1766005445650,6.6e-07,86158.0,86157.0,0.61379811]
[1766005446724,6.6e-07,86158.0,86157.0,0.67656742]
[1766005447125,6.6e-07,86158.0,86157.0,0.67856742]
[1766005447565,6.6e-07,86158.0,86157.0,0.67656742]
[1766005447801,6.6e-07,86158.0,86157.0,0.67956742]
[1766005447941,6.6e-07,86158.0,86157.0,0.67656742]
[1766005448332,6.6e-07,86158.0,86157.0,0.67956742]
[1766005448733,0.09168725,86180.0,86157.0,0.67956742]
[1766005448734,0.01844,86186.0,86158.0,0.61306]
[1766005448971,0.01844,86186.0,86166.0,0.61306]
[1766005449199,0.0907,86188.0,86168.0,0.61306]
[1766005449580,0.00035211,86169.0,86168.0,0.61368561]
[1766005449745,2.11e-06,86169.0,86168.0,0.61368561]
[1766005449985,2.11e-06,86169.0,86168.0,0.67644367]
[1766005450637,2.11e-06,86169.0,86168.0,0.90854839]
[1766005450848,0.57843,86206.0,86168.0,0.90854839]
[1766005450849,0.58535,86222.0,86190.0,0.01160227]
[1766005451051,0.0907,86215.0,86192.0,0.56742]
[1766005451305,0.58535,86207.0,86192.0,0.05864856]
[1766005451510,0.58535,86206.0,86192.0,0.00062561]
[1766005452053,0.76945,86204.0,86192.0,0.00062561]
[1766005452455,0.77043725,86204.0,86192.0,0.00062561]
[1766005452864,0.5948533,86204.0,86192.0,0.00062561]
[1766005453089,0.5948533,86204.0,86185.0,0.013895]
[1766005453090,0.58535,86201.0,86183.0,0.14182]
[1766005453263,0.58633725,86201.0,86183.0,0.14244561]
[1766005453462,0.58535,86199.0,86183.0,0.00062561]
[1766005453694,0.58633725,86199.0,86183.0,0.00062561]
[1766005453868,0.63222995,86193.0,86183.0,0.00062561]
[1766005454068,0.58535,86191.0,86171.0,0.56742]
[1766005454278,0.58535,86186.0,86170.0,0.01844]
[1766005454485,0.58633725,86186.0,86170.0,0.01844]
[1766005454863,0.1841,86185.0,86170.0,0.01844]
[1766005455062,0.76945,86184.0,86170.0,0.08354285]
[1766005455257,0.77043725,86184.0,86170.0,0.01844]
[1766005455466,0.77043725,86184.0,86168.0,0.14847]
[1766005455698,0.77043725,86184.0,86165.0,0.013895]
[1766005455699,0.1841,86180.0,86165.0,0.013895]
[1766005455898,0.1841,86180.0,86165.0,0.581315]
[1766005455899,0.18508725,86180.0,86165.0,0.581315]
[1766005456096,0.18508725,86180.0,86165.0,0.728685]
[1766005456307,0.18508725,86180.0,86165.0,0.80831917]
[1766005457352,0.00098725,86180.0,86166.0,0.56742]
[1766005457507,0.00098725,86180.0,86169.0,0.71423]
[1766005457714,0.58535,86176.0,86156.0,0.71423]
[1766005457950,0.7700756,86176.0,86160.0,0.013895]
[1766005458149,0.7700756,86176.0,86161.0,0.07282375]
[1766005458448,0.1847256,86176.0,86161.0,0.07282375]
[1766005458648,0.1847256,86176.0,86162.0,0.71367]
[1766005458649,0.0006256,86176.0,86162.0,0.71367]
[1766005458874,0.0006256,86176.0,86163.0,0.01392709]
[1766005459092,0.0006256,86176.0,86165.0,0.56742]
[1766005459262,0.0006256,86176.0,86166.0,0.08073318]
[1766005460557,0.0006256,86176.0,86166.0,0.5813466]
[1766005460854,0.0006256,86176.0,86166.0,0.712]
[1766005461262,0.0006256,86176.0,86161.0,0.07282375]
[1766005461263,0.0006256,86176.0,86165.0,0.14458]
[1766005461442,0.0006256,86176.0,86167.0,0.56742]
[1766005461760,0.0006256,86176.0,86168.0,0.01904422]
[1766005461912,0.01160281,86186.0,86168.0,0.01904422]
[1766005461913,0.011602,86192.0,86173.0,0.013895]
[1766005462113,0.0907,86187.0,86173.0,0.14377]
[1766005462958,0.09168726,86187.0,86173.0,0.14377]
[1766005463343,0.09168726,86187.0,86174.0,0.56742]
[1766005463543,0.09168726,86187.0,86175.0,0.071119]
[1766005463772,0.09168726,86187.0,86175.0,0.638539]
[1766005463990,0.09168726,86187.0,86176.0,0.01392499]
[1766005464221,0.00098726,86187.0,86176.0,0.01392499]
[1766005464583,0.0907,86189.0,86177.0,0.14268]
[1766005464807,0.0907,86189.0,86178.0,0.7101]
[1766005466936,0.09132559,86189.0,86178.0,0.6601]
[1766005467144,0.10292799,86189.0,86176.0,0.00098727]
[1766005467306,0.0907,86187.0,86176.0,0.00098727]
[1766005467488,0.0907,86184.0,86176.0,0.00098727]
[1766005467688,0.0907,86184.0,86177.0,0.14107]
[1766005467899,0.0907,86184.0,86176.0,0.00098727]
[1766005468309,0.0907,86184.0,86177.0,0.14239]
[1766005468512,0.00062559,86187.0,86178.0,0.17065239]
[1766005468759,0.00062559,86187.0,86178.0,0.15672773]
[1766005468987,0.00062559,86187.0,86163.0,0.01844]
[1766005468988,0.76945,86186.0,86168.0,0.70923134]
[1766005469164,0.77007559,86186.0,86168.0,0.70923134]
[1766005469377,0.18472559,86186.0,86168.0,0.56742]
[1766005469715,0.18451359,86186.0,86169.0,0.14203]
[1766005469911,0.18451359,86186.0,86171.0,0.71233]
[1766005470157,0.000256,86185.0,86172.0,0.071233]
[1766005470334,0.000256,86185.0,86172.0,0.783563]